Workbook

Sheet Budget
A1: Expense | B1: Jan | C1: Feb | D1: March | E1: April | F1: May | G1: June | H1: July | I1: Aug | J1: Sept | K1: Oct | L1: Nov | M1: Dec | N1: Yearly Total
A2: Grocerys | B2: 0 | C2: 0 | D2: 0 | E2: 0 | F2: 0 | G2: 0 | H2: 0 | I2: 0 | J2: 0 | K2: 0 | L2: 0 | M2: 0 | N2: =SUM(B2:M2) -> 0
A3: Eating Out | B3: 0 | C3: 0 | D3: 0 | E3: 0 | F3: 0 | G3: 0 | H3: 0 | I3: 0 | J3: 0 | K3: 0 | L3: 0 | M3: 0 | N3: =SUM(B3:M3) -> 0
A4: Gas | B4: 0 | C4: 0 | D4: 0 | E4: 0 | F4: 0 | G4: 0 | H4: 0 | I4: 0 | J4: 0 | K4: 0 | L4: 0 | M4: 0 | N4: =SUM(B4:M4) -> 0
A5: Rent | B5: 0 | C5: 0 | D5: 0 | E5: 0 | F5: 0 | G5: 0 | H5: 0 | I5: 0 | J5: 0 | K5: 0 | L5: 0 | M5: 0 | N5: 0
A6: Utilities | B6: 0 | C6: 0 | D6: 0 | E6: 0 | F6: 0 | G6: 0 | H6: 0 | I6: 0 | J6: 0 | K6: 0 | L6: 0 | M6: 0 | N6: 0
A7: Health Insurance | B7: 0 | C7: 0 | D7: 0 | E7: 0 | F7: 0 | G7: 0 | H7: 0 | I7: 0 | J7: 0 | K7: 0 | L7: 0 | M7: 0 | N7: 0
A8: Car Payment | B8: 0 | C8: 0 | D8: 0 | E8: 0 | F8: 0 | G8: 0 | H8: 0 | I8: 0 | J8: 0 | K8: 0 | L8: 0 | M8: 0 | N8: 0
A9: Oil Change | B9: 0 | C9: 0 | D9: 0 | E9: 0 | F9: 0 | G9: 0 | H9: 0 | I9: 0 | J9: 0 | K9: 0 | L9: 0 | M9: 0 | N9: 0
A10: Car Repairs | B10: 0 | C10: 0 | D10: 0 | E10: 0 | F10: 0 | G10: 0 | H10: 0 | I10: 0 | J10: 0 | K10: 0 | L10: 0 | M10: 0 | N10: 0
A11: Car Insurance | B11: 0 | C11: 0 | D11: 0 | E11: 0 | F11: 0 | G11: 0 | H11: 0 | I11: 0 | J11: 0 | K11: 0 | L11: 0 | M11: 0 | N11: 0
A12: Dates | B12: 0 | C12: 0 | D12: 0 | E12: 0 | F12: 0 | G12: 0 | H12: 0 | I12: 0 | J12: 0 | K12: 0 | L12: 0 | M12: 0 | N12: 0
A13: Books | B13: 0 | C13: 0 | D13: 0 | E13: 0 | F13: 0 | G13: 0 | H13: 0 | I13: 0 | J13: 0 | K13: 0 | L13: 0 | M13: 0 | N13: 0
A14: Laundry | B14: 0 | C14: 0 | D14: 0 | E14: 0 | F14: 0 | G14: 0 | H14: 0 | I14: 0 | J14: 0 | K14: 0 | L14: 0 | M14: 0 | N14: 0
A15: Move in | B15: 0 | C15: 0 | D15: 0 | E15: 0 | F15: 0 | G15: 0 | H15: 0 | I15: 0 | J15: 0 | K15: 0 | L15: 0 | M15: 0 | N15: 0
A16: Tithing | B16: 0 | C16: 0 | D16: 0 | E16: 0 | F16: 0 | G16: 0 | H16: 0 | I16: 0 | J16: 0 | K16: 0 | L16: 0 | M16: 0 | N16: 0
A17: Fast Offerings | B17: 0 | C17: 0 | D17: 0 | E17: 0 | F17: 0 | G17: 0 | H17: 0 | I17: 0 | J17: 0 | K17: 0 | L17: 0 | M17: 0 | N17: 0
A18: Phone | B18: 0 | C18: 0 | D18: 0 | E18: 0 | F18: 0 | G18: 0 | H18: 0 | I18: 0 | J18: 0 | K18: 0 | L18: 0 | M18: 0 | N18: 0
A19: Gym | B19: 0 | C19: 0 | D19: 0 | E19: 0 | F19: 0 | G19: 0 | H19: 0 | I19: 0 | J19: 0 | K19: 0 | L19: 0 | M19: 0 | N19: 0
A20: Uta | B20: 0 | C20: 0 | D20: 0 | E20: 0 | F20: 0 | G20: 0 | H20: 0 | I20: 0 | J20: 0 | K20: 0 | L20: 0 | M20: 0 | N20: 0
A21: Hair Cut | B21: 0 | C21: 0 | D21: 0 | E21: 0 | F21: 0 | G21: 0 | H21: 0 | I21: 0 | J21: 0 | K21: 0 | L21: 0 | M21: 0 | N21: 0
A22: Intramural Sports | B22: 0 | C22: 0 | D22: 0 | E22: 0 | F22: 0 | G22: 0 | H22: 0 | I22: 0 | J22: 0 | K22: 0 | L22: 0 | M22: 0 | N22: 0
A23: Gifts | B23: 0 | C23: 0 | D23: 0 | E23: 0 | F23: 0 | G23: 0 | H23: 0 | I23: 0 | J23: 0 | K23: 0 | L23: 0 | M23: 0 | N23: 0
A24: Tuition | B24: 0 | C24: 0 | D24: 0 | E24: 0 | F24: 0 | G24: 0 | H24: 0 | I24: 0 | J24: 0 | K24: 0 | L24: 0 | M24: 0 | N24: 0
A25: Trips | B25: 0 | C25: 0 | D25: 0 | E25: 0 | F25: 0 | G25: 0 | H25: 0 | I25: 0 | J25: 0 | K25: 0 | L25: 0 | M25: 0 | N25: 0
A26: Misc | B26: 0 | C26: 0 | D26: 0 | E26: 0 | F26: 0 | G26: 0 | H26: 0 | I26: 0 | J26: 0 | K26: 0 | L26: 0 | M26: 0 | N26: 0
A27: Total | B27: 0 | C27: 0 | D27: 0 | E27: 0 | F27: 0 | G27: 0 | H27: 0 | I27: 0 | J27: 0 | K27: 0 | L27: 0 | M27: 0 | N27: =SUM(B27:M27) -> 0
A28: Check | B28: =Jan!BA25 -> 0 | C28: =Feb!BA25 -> 0 | D28: =March!BA25 -> 0 | E28: =April!BA25 -> 0 | F28: =May!BA25 -> 0 | G28: =June!BA25 -> 0 | H28: =July!BA25 -> 0 | I28: =Aug!BA25 -> 0 | J28: =Sept!BA25 -> 0 | K28: =Oct!BA25 -> 0 | L28: =Nov!BA25 -> 0 | M28: =Dec!BA25 -> 0 | N28: =SUM(B28:M28) -> 0

Sheet Jan
A1: Car Payment | B1: - | C1: Grocerys | D1: - | E1: Eating Out | F1: - | G1: Misc | H1: - | I1: Dates | J1: - | K1: Gas | L1: - | M1: Trips | N1: - | O1: Tithing | P1: - | Q1: Books | R1: - | S1: Rent | T1: - | U1: Move in | V1: - | W1: Phone | X1: - | Y1: UnKnown | Z1: - | AA1: Utilities | AB1: - | AC1: Gym | AD1: - | AE1: Oil Change | AF1: - | AG1: Uta | AH1: - | AI1: Car Repairs | AJ1: - | AK1: Hair Cut | AL1: - | AM1: Intramural Sports | AN1: - | AO1: Fast Offerings | AP1: - | AQ1: Laundry | AR1: - | AS1: Gifts | AT1: - | AU1: Tuition | AV1: - | AW1: Health Insurance | AX1: - | AY1: Car Insurance | AZ1: - | BA1: Total
A25: =SUM(A2:A24) -> 0 | C25: =SUM(C2:C24) -> 0 | E25: =SUM(E2:E24) -> 0 | G25: =SUM(G2:G24) -> 0 | I25: =SUM(I2:I24) -> 0 | K25: =SUM(K2:K24) -> 0 | M25: =SUM(M2:M24) -> 0 | O25: =SUM(O2:O24) -> 0 | Q25: =SUM(Q2:Q24) -> 0 | S25: =SUM(S2:S24) -> 0 | U25: =SUM(U2:U24) -> 0 | W25: =SUM(W2:W24) -> 0 | Y25: =SUM(Y2:Y24) -> 0 | AA25: =SUM(AA2:AA24) -> 0 | AC25: =SUM(AC2:AC24) -> 0 | AE25: =SUM(AE2:AE24) -> 0 | AG25: =SUM(AG2:AG24) -> 0 | AI25: =SUM(AI2:AI24) -> 0 | AK25: 0 | AM25: 0 | AO25: 0 | AQ25: 0 | AS25: 0 | AU25: 0 | AW25: 0 | AY25: 0 | BA25: =SUM(A25:AZ25) -> 0

Sheet Feb
A1: Car Payment | B1: - | C1: Grocerys | D1: - | E1: Eating Out | F1: - | G1: Misc | H1: - | I1: Dates | J1: - | K1: Gas | L1: - | M1: Trips | N1: - | O1: Tithing | P1: - | Q1: Books | R1: - | S1: Rent | T1: - | U1: Move in | V1: - | W1: Phone | X1: - | Y1: UnKnown | Z1: - | AA1: Utilities | AB1: - | AC1: Gym | AD1: - | AE1: Oil Change | AF1: - | AG1: Uta | AH1: - | AI1: Car Repairs | AJ1: - | AK1: Hair Cut | AL1: - | AM1: Intramural Sports | AN1: - | AO1: Fast Offerings | AP1: - | AQ1: Laundry | AR1: - | AS1: Gifts | AT1: - | AU1: Tuition | AV1: - | AW1: Health Insurance | AX1: - | AY1: Car Insurance | AZ1: - | BA1: Total
A25: =SUM(A2:A24) -> 0 | C25: =SUM(C2:C24) -> 0 | E25: =SUM(E2:E24) -> 0 | G25: =SUM(G2:G24) -> 0 | I25: =SUM(I2:I24) -> 0 | K25: =SUM(K2:K24) -> 0 | M25: =SUM(M2:M24) -> 0 | O25: =SUM(O2:O24) -> 0 | Q25: =SUM(Q2:Q24) -> 0 | S25: =SUM(S2:S24) -> 0 | U25: =SUM(U2:U24) -> 0 | W25: =SUM(W2:W24) -> 0 | Y25: =SUM(Y2:Y24) -> 0 | AA25: =SUM(AA2:AA24) -> 0 | AC25: =SUM(AC2:AC24) -> 0 | AE25: =SUM(AE2:AE24) -> 0 | AG25: =SUM(AG2:AG24) -> 0 | AI25: =SUM(AI2:AI24) -> 0 | AK25: 0 | AM25: 0 | AO25: 0 | AQ25: 0 | AS25: 0 | AU25: 0 | AW25: 0 | AY25: 0 | BA25: =SUM(A25:AZ25) -> 0

Sheet March
A1: Car Payment | B1: - | C1: Grocerys | D1: - | E1: Eating Out | F1: - | G1: Misc | H1: - | I1: Dates | J1: - | K1: Gas | L1: - | M1: Trips | N1: - | O1: Tithing | P1: - | Q1: Books | R1: - | S1: Rent | T1: - | U1: Move in | V1: - | W1: Phone | X1: - | Y1: UnKnown | Z1: - | AA1: Utilities | AB1: - | AC1: Gym | AD1: - | AE1: Oil Change | AF1: - | AG1: Uta | AH1: - | AI1: Car Repairs | AJ1: - | AK1: Hair Cut | AL1: - | AM1: Intramural Sports | AN1: - | AO1: Fast Offerings | AP1: - | AQ1: Laundry | AR1: - | AS1: Gifts | AT1: - | AU1: Tuition | AV1: - | AW1: Health Insurance | AX1: - | AY1: Car Insurance | AZ1: - | BA1: Total
A25: =SUM(A2:A24) -> 0 | C25: =SUM(C2:C24) -> 0 | E25: =SUM(E2:E24) -> 0 | G25: =SUM(G2:G24) -> 0 | I25: =SUM(I2:I24) -> 0 | K25: =SUM(K2:K24) -> 0 | M25: =SUM(M2:M24) -> 0 | O25: =SUM(O2:O24) -> 0 | Q25: =SUM(Q2:Q24) -> 0 | S25: =SUM(S2:S24) -> 0 | U25: =SUM(U2:U24) -> 0 | W25: =SUM(W2:W24) -> 0 | Y25: =SUM(Y2:Y24) -> 0 | AA25: =SUM(AA2:AA24) -> 0 | AC25: =SUM(AC2:AC24) -> 0 | AE25: =SUM(AE2:AE24) -> 0 | AG25: =SUM(AG2:AG24) -> 0 | AI25: =SUM(AI2:AI24) -> 0 | AK25: 0 | AM25: 0 | AO25: 0 | AQ25: 0 | AS25: 0 | AU25: 0 | AW25: 0 | AY25: 0 | BA25: =SUM(A25:AZ25) -> 0

Sheet April
A1: Car Payment | B1: - | C1: Grocerys | D1: - | E1: Eating Out | F1: - | G1: Misc | H1: - | I1: Dates | J1: - | K1: Gas | L1: - | M1: Trips | N1: - | O1: Tithing | P1: - | Q1: Books | R1: - | S1: Rent | T1: - | U1: Move in | V1: - | W1: Phone | X1: - | Y1: UnKnown | Z1: - | AA1: Utilities | AB1: - | AC1: Gym | AD1: - | AE1: Oil Change | AF1: - | AG1: Uta | AH1: - | AI1: Car Repairs | AJ1: - | AK1: Hair Cut | AL1: - | AM1: Intramural Sports | AN1: - | AO1: Fast Offerings | AP1: - | AQ1: Laundry | AR1: - | AS1: Gifts | AT1: - | AU1: Tuition | AV1: - | AW1: Health Insurance | AX1: - | AY1: Car Insurance | AZ1: - | BA1: Total
A25: =SUM(A2:A24) -> 0 | C25: =SUM(C2:C24) -> 0 | E25: =SUM(E2:E24) -> 0 | G25: =SUM(G2:G24) -> 0 | I25: =SUM(I2:I24) -> 0 | K25: =SUM(K2:K24) -> 0 | M25: =SUM(M2:M24) -> 0 | O25: =SUM(O2:O24) -> 0 | Q25: =SUM(Q2:Q24) -> 0 | S25: =SUM(S2:S24) -> 0 | U25: =SUM(U2:U24) -> 0 | W25: =SUM(W2:W24) -> 0 | Y25: =SUM(Y2:Y24) -> 0 | AA25: =SUM(AA2:AA24) -> 0 | AC25: =SUM(AC2:AC24) -> 0 | AE25: =SUM(AE2:AE24) -> 0 | AG25: =SUM(AG2:AG24) -> 0 | AI25: =SUM(AI2:AI24) -> 0 | AK25: 0 | AM25: 0 | AO25: 0 | AQ25: 0 | AS25: 0 | AU25: 0 | AW25: 0 | AY25: 0 | BA25: =SUM(A25:AZ25) -> 0

Sheet May
A1: Car Payment | B1: - | C1: Grocerys | D1: - | E1: Eating Out | F1: - | G1: Misc | H1: - | I1: Dates | J1: - | K1: Gas | L1: - | M1: Trips | N1: - | O1: Tithing | P1: - | Q1: Books | R1: - | S1: Rent | T1: - | U1: Move in | V1: - | W1: Phone | X1: - | Y1: UnKnown | Z1: - | AA1: Utilities | AB1: - | AC1: Gym | AD1: - | AE1: Oil Change | AF1: - | AG1: Uta | AH1: - | AI1: Car Repairs | AJ1: - | AK1: Hair Cut | AL1: - | AM1: Intramural Sports | AN1: - | AO1: Fast Offerings | AP1: - | AQ1: Laundry | AR1: - | AS1: Gifts | AT1: - | AU1: Tuition | AV1: - | AW1: Health Insurance | AX1: - | AY1: Car Insurance | AZ1: - | BA1: Total
A25: =SUM(A2:A24) -> 0 | C25: =SUM(C2:C24) -> 0 | E25: =SUM(E2:E24) -> 0 | G25: =SUM(G2:G24) -> 0 | I25: =SUM(I2:I24) -> 0 | K25: =SUM(K2:K24) -> 0 | M25: =SUM(M2:M24) -> 0 | O25: =SUM(O2:O24) -> 0 | Q25: =SUM(Q2:Q24) -> 0 | S25: =SUM(S2:S24) -> 0 | U25: =SUM(U2:U24) -> 0 | W25: =SUM(W2:W24) -> 0 | Y25: =SUM(Y2:Y24) -> 0 | AA25: =SUM(AA2:AA24) -> 0 | AC25: =SUM(AC2:AC24) -> 0 | AE25: =SUM(AE2:AE24) -> 0 | AG25: =SUM(AG2:AG24) -> 0 | AI25: =SUM(AI2:AI24) -> 0 | AK25: 0 | AM25: 0 | AO25: 0 | AQ25: 0 | AS25: 0 | AU25: 0 | AW25: 0 | AY25: 0 | BA25: =SUM(A25:AZ25) -> 0

Sheet June
A1: Car Payment | B1: - | C1: Grocerys | D1: - | E1: Eating Out | F1: - | G1: Misc | H1: - | I1: Dates | J1: - | K1: Gas | L1: - | M1: Trips | N1: - | O1: Tithing | P1: - | Q1: Books | R1: - | S1: Rent | T1: - | U1: Move in | V1: - | W1: Phone | X1: - | Y1: UnKnown | Z1: - | AA1: Utilities | AB1: - | AC1: Gym | AD1: - | AE1: Oil Change | AF1: - | AG1: Uta | AH1: - | AI1: Car Repairs | AJ1: - | AK1: Hair Cut | AL1: - | AM1: Intramural Sports | AN1: - | AO1: Fast Offerings | AP1: - | AQ1: Laundry | AR1: - | AS1: Gifts | AT1: - | AU1: Tuition | AV1: - | AW1: Health Insurance | AX1: - | AY1: Car Insurance | AZ1: - | BA1: Total
A25: =SUM(A2:A24) -> 0 | C25: =SUM(C2:C24) -> 0 | E25: =SUM(E2:E24) -> 0 | G25: =SUM(G2:G24) -> 0 | I25: =SUM(I2:I24) -> 0 | K25: =SUM(K2:K24) -> 0 | M25: =SUM(M2:M24) -> 0 | O25: =SUM(O2:O24) -> 0 | Q25: =SUM(Q2:Q24) -> 0 | S25: =SUM(S2:S24) -> 0 | U25: =SUM(U2:U24) -> 0 | W25: =SUM(W2:W24) -> 0 | Y25: =SUM(Y2:Y24) -> 0 | AA25: =SUM(AA2:AA24) -> 0 | AC25: =SUM(AC2:AC24) -> 0 | AE25: =SUM(AE2:AE24) -> 0 | AG25: =SUM(AG2:AG24) -> 0 | AI25: =SUM(AI2:AI24) -> 0 | AK25: 0 | AM25: 0 | AO25: 0 | AQ25: 0 | AS25: 0 | AU25: 0 | AW25: 0 | AY25: 0 | BA25: =SUM(A25:AZ25) -> 0

Sheet July
A1: Car Payment | B1: - | C1: Grocerys | D1: - | E1: Eating Out | F1: - | G1: Misc | H1: - | I1: Dates | J1: - | K1: Gas | L1: - | M1: Trips | N1: - | O1: Tithing | P1: - | Q1: Books | R1: - | S1: Rent | T1: - | U1: Move in | V1: - | W1: Phone | X1: - | Y1: UnKnown | Z1: - | AA1: Utilities | AB1: - | AC1: Gym | AD1: - | AE1: Oil Change | AF1: - | AG1: Uta | AH1: - | AI1: Car Repairs | AJ1: - | AK1: Hair Cut | AL1: - | AM1: Intramural Sports | AN1: - | AO1: Fast Offerings | AP1: - | AQ1: Laundry | AR1: - | AS1: Gifts | AT1: - | AU1: Tuition | AV1: - | AW1: Health Insurance | AX1: - | AY1: Car Insurance | AZ1: - | BA1: Total
A25: =SUM(A2:A24) -> 0 | C25: =SUM(C2:C24) -> 0 | E25: =SUM(E2:E24) -> 0 | G25: =SUM(G2:G24) -> 0 | I25: =SUM(I2:I24) -> 0 | K25: =SUM(K2:K24) -> 0 | M25: =SUM(M2:M24) -> 0 | O25: =SUM(O2:O24) -> 0 | Q25: =SUM(Q2:Q24) -> 0 | S25: =SUM(S2:S24) -> 0 | U25: =SUM(U2:U24) -> 0 | W25: =SUM(W2:W24) -> 0 | Y25: =SUM(Y2:Y24) -> 0 | AA25: =SUM(AA2:AA24) -> 0 | AC25: =SUM(AC2:AC24) -> 0 | AE25: =SUM(AE2:AE24) -> 0 | AG25: =SUM(AG2:AG24) -> 0 | AI25: =SUM(AI2:AI24) -> 0 | AK25: 0 | AM25: 0 | AO25: 0 | AQ25: 0 | AS25: 0 | AU25: 0 | AW25: 0 | AY25: 0 | BA25: =SUM(A25:AZ25) -> 0

Sheet Aug
A1: Car Payment | B1: - | C1: Grocerys | D1: - | E1: Eating Out | F1: - | G1: Misc | H1: - | I1: Dates | J1: - | K1: Gas | L1: - | M1: Trips | N1: - | O1: Tithing | P1: - | Q1: Books | R1: - | S1: Rent | T1: - | U1: Move in | V1: - | W1: Phone | X1: - | Y1: UnKnown | Z1: - | AA1: Utilities | AB1: - | AC1: Gym | AD1: - | AE1: Oil Change | AF1: - | AG1: Uta | AH1: - | AI1: Car Repairs | AJ1: - | AK1: Hair Cut | AL1: - | AM1: Intramural Sports | AN1: - | AO1: Fast Offerings | AP1: - | AQ1: Laundry | AR1: - | AS1: Gifts | AT1: - | AU1: Tuition | AV1: - | AW1: Health Insurance | AX1: - | AY1: Car Insurance | AZ1: - | BA1: Total
A25: =SUM(A2:A24) -> 0 | C25: =SUM(C2:C24) -> 0 | E25: =SUM(E2:E24) -> 0 | G25: =SUM(G2:G24) -> 0 | I25: =SUM(I2:I24) -> 0 | K25: =SUM(K2:K24) -> 0 | M25: =SUM(M2:M24) -> 0 | O25: =SUM(O2:O24) -> 0 | Q25: =SUM(Q2:Q24) -> 0 | S25: =SUM(S2:S24) -> 0 | U25: =SUM(U2:U24) -> 0 | W25: =SUM(W2:W24) -> 0 | Y25: =SUM(Y2:Y24) -> 0 | AA25: =SUM(AA2:AA24) -> 0 | AC25: =SUM(AC2:AC24) -> 0 | AE25: =SUM(AE2:AE24) -> 0 | AG25: =SUM(AG2:AG24) -> 0 | AI25: =SUM(AI2:AI24) -> 0 | AK25: 0 | AM25: 0 | AO25: 0 | AQ25: 0 | AS25: 0 | AU25: 0 | AW25: 0 | AY25: 0 | BA25: =SUM(A25:AZ25) -> 0

Sheet Sept
A1: Car Payment | B1: - | C1: Grocerys | D1: - | E1: Eating Out | F1: - | G1: Misc | H1: - | I1: Dates | J1: - | K1: Gas | L1: - | M1: Trips | N1: - | O1: Tithing | P1: - | Q1: Books | R1: - | S1: Rent | T1: - | U1: Move in | V1: - | W1: Phone | X1: - | Y1: UnKnown | Z1: - | AA1: Utilities | AB1: - | AC1: Gym | AD1: - | AE1: Oil Change | AF1: - | AG1: Uta | AH1: - | AI1: Car Repairs | AJ1: - | AK1: Hair Cut | AL1: - | AM1: Intramural Sports | AN1: - | AO1: Fast Offerings | AP1: - | AQ1: Laundry | AR1: - | AS1: Gifts | AT1: - | AU1: Tuition | AV1: - | AW1: Health Insurance | AX1: - | AY1: Car Insurance | AZ1: - | BA1: Total
A25: =SUM(A2:A24) -> 0 | C25: =SUM(C2:C24) -> 0 | E25: =SUM(E2:E24) -> 0 | G25: =SUM(G2:G24) -> 0 | I25: =SUM(I2:I24) -> 0 | K25: =SUM(K2:K24) -> 0 | M25: =SUM(M2:M24) -> 0 | O25: =SUM(O2:O24) -> 0 | Q25: =SUM(Q2:Q24) -> 0 | S25: =SUM(S2:S24) -> 0 | U25: =SUM(U2:U24) -> 0 | W25: =SUM(W2:W24) -> 0 | Y25: =SUM(Y2:Y24) -> 0 | AA25: =SUM(AA2:AA24) -> 0 | AC25: =SUM(AC2:AC24) -> 0 | AE25: =SUM(AE2:AE24) -> 0 | AG25: =SUM(AG2:AG24) -> 0 | AI25: =SUM(AI2:AI24) -> 0 | AK25: 0 | AM25: 0 | AO25: 0 | AQ25: 0 | AS25: 0 | AU25: 0 | AW25: 0 | AY25: 0 | BA25: =SUM(A25:AZ25) -> 0

Sheet Oct
A1: Car Payment | B1: - | C1: Grocerys | D1: - | E1: Eating Out | F1: - | G1: Misc | H1: - | I1: Dates | J1: - | K1: Gas | L1: - | M1: Trips | N1: - | O1: Tithing | P1: - | Q1: Books | R1: - | S1: Rent | T1: - | U1: Move in | V1: - | W1: Phone | X1: - | Y1: UnKnown | Z1: - | AA1: Utilities | AB1: - | AC1: Gym | AD1: - | AE1: Oil Change | AF1: - | AG1: Uta | AH1: - | AI1: Car Repairs | AJ1: - | AK1: Hair Cut | AL1: - | AM1: Intramural Sports | AN1: - | AO1: Fast Offerings | AP1: - | AQ1: Laundry | AR1: - | AS1: Gifts | AT1: - | AU1: Tuition | AV1: - | AW1: Health Insurance | AX1: - | AY1: Car Insurance | AZ1: - | BA1: Total
A25: =SUM(A2:A24) -> 0 | C25: =SUM(C2:C24) -> 0 | E25: =SUM(E2:E24) -> 0 | G25: =SUM(G2:G24) -> 0 | I25: =SUM(I2:I24) -> 0 | K25: =SUM(K2:K24) -> 0 | M25: =SUM(M2:M24) -> 0 | O25: =SUM(O2:O24) -> 0 | Q25: =SUM(Q2:Q24) -> 0 | S25: =SUM(S2:S24) -> 0 | U25: =SUM(U2:U24) -> 0 | W25: =SUM(W2:W24) -> 0 | Y25: =SUM(Y2:Y24) -> 0 | AA25: =SUM(AA2:AA24) -> 0 | AC25: =SUM(AC2:AC24) -> 0 | AE25: =SUM(AE2:AE24) -> 0 | AG25: =SUM(AG2:AG24) -> 0 | AI25: =SUM(AI2:AI24) -> 0 | AK25: 0 | AM25: 0 | AO25: 0 | AQ25: 0 | AS25: 0 | AU25: 0 | AW25: 0 | AY25: 0 | BA25: =SUM(A25:AZ25) -> 0

Sheet Nov
A1: Car Payment | B1: - | C1: Grocerys | D1: - | E1: Eating Out | F1: - | G1: Misc | H1: - | I1: Dates | J1: - | K1: Gas | L1: - | M1: Trips | N1: - | O1: Tithing | P1: - | Q1: Books | R1: - | S1: Rent | T1: - | U1: Move in | V1: - | W1: Phone | X1: - | Y1: UnKnown | Z1: - | AA1: Utilities | AB1: - | AC1: Gym | AD1: - | AE1: Oil Change | AF1: - | AG1: Uta | AH1: - | AI1: Car Repairs | AJ1: - | AK1: Hair Cut | AL1: - | AM1: Intramural Sports | AN1: - | AO1: Fast Offerings | AP1: - | AQ1: Laundry | AR1: - | AS1: Gifts | AT1: - | AU1: Tuition | AV1: - | AW1: Health Insurance | AX1: - | AY1: Car Insurance | AZ1: - | BA1: Total
A25: =SUM(A2:A24) -> 0 | C25: =SUM(C2:C24) -> 0 | E25: =SUM(E2:E24) -> 0 | G25: =SUM(G2:G24) -> 0 | I25: =SUM(I2:I24) -> 0 | K25: =SUM(K2:K24) -> 0 | M25: =SUM(M2:M24) -> 0 | O25: =SUM(O2:O24) -> 0 | Q25: =SUM(Q2:Q24) -> 0 | S25: =SUM(S2:S24) -> 0 | U25: =SUM(U2:U24) -> 0 | W25: =SUM(W2:W24) -> 0 | Y25: =SUM(Y2:Y24) -> 0 | AA25: =SUM(AA2:AA24) -> 0 | AC25: =SUM(AC2:AC24) -> 0 | AE25: =SUM(AE2:AE24) -> 0 | AG25: =SUM(AG2:AG24) -> 0 | AI25: =SUM(AI2:AI24) -> 0 | AK25: 0 | AM25: 0 | AO25: 0 | AQ25: 0 | AS25: 0 | AU25: 0 | AW25: 0 | AY25: 0 | BA25: =SUM(A25:AZ25) -> 0

Sheet Dec
A1: Car Payment | B1: - | C1: Grocerys | D1: - | E1: Eating Out | F1: - | G1: Misc | H1: - | I1: Dates | J1: - | K1: Gas | L1: - | M1: Trips | N1: - | O1: Tithing | P1: - | Q1: Books | R1: - | S1: Rent | T1: - | U1: Move in | V1: - | W1: Phone | X1: - | Y1: UnKnown | Z1: - | AA1: Utilities | AB1: - | AC1: Gym | AD1: - | AE1: Oil Change | AF1: - | AG1: Uta | AH1: - | AI1: Car Repairs | AJ1: - | AK1: Hair Cut | AL1: - | AM1: Intramural Sports | AN1: - | AO1: Fast Offerings | AP1: - | AQ1: Laundry | AR1: - | AS1: Gifts | AT1: - | AU1: Tuition | AV1: - | AW1: Health Insurance | AX1: - | AY1: Car Insurance | AZ1: - | BA1: Total
A25: =SUM(A2:A24) -> 0 | C25: =SUM(C2:C24) -> 0 | E25: =SUM(E2:E24) -> 0 | G25: =SUM(G2:G24) -> 0 | I25: =SUM(I2:I24) -> 0 | K25: =SUM(K2:K24) -> 0 | M25: =SUM(M2:M24) -> 0 | O25: =SUM(O2:O24) -> 0 | Q25: =SUM(Q2:Q24) -> 0 | S25: =SUM(S2:S24) -> 0 | U25: =SUM(U2:U24) -> 0 | W25: =SUM(W2:W24) -> 0 | Y25: =SUM(Y2:Y24) -> 0 | AA25: =SUM(AA2:AA24) -> 0 | AC25: =SUM(AC2:AC24) -> 0 | AE25: =SUM(AE2:AE24) -> 0 | AG25: =SUM(AG2:AG24) -> 0 | AI25: =SUM(AI2:AI24) -> 0 | AK25: 0 | AM25: 0 | AO25: 0 | AQ25: 0 | AS25: 0 | AU25: 0 | AW25: 0 | AY25: 0 | BA25: =SUM(A25:AZ25) -> 0

Sheet Trans
A1: Date | B1: Price | C1: Company
A2: 2014-12-09 | B2: =RANDBETWEEN(-20,-1) -> -11 | C2: WAL-MART #1768
A3: 2014-12-09 | B3: =RANDBETWEEN(-20,-1) -> -20 | C3: WAL-MART #1768
A4: 2014-12-06 | B4: -14 | C4: CHEVRON 00208662
A5: 2014-12-04 | B5: -7 | C5: WENDYS #6076
A6: 2014-12-03 | B6: -5 | C6: 7-ELEVEN 26749
A7: 2014-12-03 | B7: -19 | C7: SMITHS FOOD #4136
A8: 2014-11-29 | B8: -6 | C8: VESTA *VIRGIN MOBILE
A9: 2014-11-28 | B9: -20 | C9: PAC*GOLD'S GYM
A10: 2014-11-22 | B10: -20 | C10: 7-ELEVEN 26749
A11: 2014-11-21 | B11: -3 | C11: VILLAGE-INN-REST #0737
A12: 2014-11-20 | B12: -17 | C12: PROVO DI
A13: 2014-11-18 | B13: -8 | C13: PROVOCITYRESIUTILPMNT
A14: 2014-11-17 | B14: -19 | C14: SMITHS FOOD #4136
A15: 2014-11-13 | B15: -18 | C15: PROVO CITY ART CENTER WB
A16: 2014-11-12 | B16: -13 | C16: 9TH EAST CREST
A17: 2014-11-12 | B17: -9 | C17: BYU WSC TACO BELL
A18: 2014-11-10 | B18: -10 | C18: MARKETPLACE CAFE
A19: 2014-11-06 | B19: -1 | C19: CAFE RIO PROVO Q35
A20: 2014-11-04 | B20: -10 | C20: BYU PMPC WSC MAIL
A21: 2014-11-03 | B21: -8 | C21: LITTLE CAESARS 006
A22: 2014-10-31 | B22: -7 | C22: MAVERIK #462
A23: 2014-10-31 | B23: -4 | C23: VESTA *VIRGIN MOBILE
A24: 2014-10-31 | B24: -11 | C24: MARKETPLACE CAFE
A25: 2014-10-31 | B25: -3 | C25: SEARS AUTO CNTR 2631
A26: 2014-10-30 | B26: -18 | C26: MARKETPLACE CAFE
A27: 2014-10-30 | B27: -18 | C27: MARKETPLACE CAFE
A28: 2014-10-30 | B28: -13 | C28: MARKETPLACE CAFE
A29: 2014-10-29 | B29: -17 | C29: MARKETPLACE CAFE
A30: 2014-10-29 | B30: -9 | C30: BYU WSC SUBWAY
A31: 2014-10-28 | B31: -10 | C31: LEATHERBYS FAMILY CREAMER
A32: 2014-10-27 | B32: -5 | C32: PAC*GOLD'S GYM
A33: 2014-10-27 | B33: -11 | C33: MARKETPLACE CAFE
A34: 2014-10-24 | B34: -20 | C34: SQ *CORNBELLY'S
A35: 2014-10-23 | B35: -2 | C35: MAVERIK CNTRY STRE 200
A36: 2014-10-22 | B36: -8 | C36: VESTA *VIRGIN MOBILE
A37: 2014-10-21 | B37: -14 | C37: PROVOCITYRESIUTILPMNT
A38: 2014-10-18 | B38: -9 | C38: THE OLIVE GARD00012922
A39: 2014-10-17 | B39: -20 | C39: BYU PMPC WSC MAIL
A40: 2014-10-17 | B40: -9 | C40: GAME CENTER
A41: 2014-10-15 | B41: -9 | C41: MARKETPLACE CAFE
A42: 2014-10-14 | B42: -3 | C42: 7-ELEVEN 26749
A43: 2014-10-13 | B43: -12 | C43: BYU CREAMERY FOUNTAIN
A44: 2014-10-13 | B44: -3 | C44: GAME CENTER
A45: 2014-10-11 | B45: -7 | C45: WENDYS #6073
A46: 2014-10-11 | B46: -7 | C46: WM SUPERCENTER #1768
A47: 2014-10-11 | B47: -14 | C47: PANDA EXPRESS #724
A48: 2014-10-08 | B48: -19 | C48: Amazon.com
A49: 2014-10-07 | B49: -5 | C49: Amazon.com
A50: 2014-10-06 | B50: -9 | C50: DELTA AIR 0067442702901
A51: 2014-10-06 | B51: -7 | C51: DELTA AIR 0067442702903
A52: 2014-10-04 | B52: -17 | C52: SMITHS FOOD #4136
A53: 2014-10-03 | B53: -1 | C53: CHEVRON 00204566
A54: 2014-10-03 | B54: -11 | C54: TUCANOS BRAZILIAN GRIL
A55: 2014-10-02 | B55: -11 | C55: BYU CAMPUS FLORAL
A56: 2014-09-30 | B56: -9 | C56: Amazon.com
A57: 2014-09-30 | B57: -2 | C57: 7-ELEVEN 26749
A58: 2014-09-23 | B58: -5 | C58: 9TH EAST CREST
A59: 2014-09-21 | B59: -18 | C59: CHEVRON 00073792
A60: 2014-09-21 | B60: -10 | C60: PANDA EXPRESS #1545
A61: 2014-09-19 | B61: -1 | C61: AMAZON MKTPLACE PMTS
A62: 2014-09-13 | B62: -3 | C62: CHEVRON 00209449
A63: 2014-09-13 | B63: -17 | C63: MICHAELS STORES 9887
A64: 2014-09-12 | B64: -18 | C64: IN-N-OUT BURGER #248
A65: 2014-09-12 | B65: -15 | C65: MAIN ST SINCLAIR
A66: 2014-09-12 | B66: -1 | C66: MAIN ST SINCLAIR
A67: 2014-09-12 | B67: =RANDBETWEEN(-20,-1) -> -15 | C67: 7-ELEVEN 33981
A68: 2014-09-12 | B68: -4 | C68: IN-N-OUT BURGER #248
A69: 2014-09-12 | B69: -11 | C69: BYU STUDIO 1030
A70: 2014-09-12 | B70: -20 | C70: CHEVRON 00092348
A71: 2014-09-11 | B71: -18 | C71: BYU TICKET OFFICE
A72: 2014-09-11 | B72: -8 | C72: BYU TICKET OFFICE
A73: 2014-09-09 | B73: -19 | C73: BYU JAMBA JUICE
A74: 2014-09-09 | B74: -4 | C74: BYU STORE - RESTRICTED
A75: 2014-09-08 | B75: -19 | C75: MAVERIK CNTRY STRE 200
A76: 2014-09-08 | B76: -10 | C76: BYU STORE
A77: 2014-09-06 | B77: -19 | C77: AUTOZONE #0862
A78: 2014-09-05 | B78: -7 | C78: Amazon.com
A79: 2014-09-05 | B79: -7 | C79: BYU STORE - RESTRICTED
A80: 2014-09-04 | B80: -20 | C80: SMITHS FOOD #4136
A81: 2014-09-04 | B81: -4 | C81: BYU STORE
A82: 2014-09-02 | B82: -5 | C82: WAL-MART #1768
A83: 2014-09-02 | B83: -2 | C83: NOODLES & CO 705
A84: 2014-09-01 | B84: -5 | C84: WENDYS #6074
A85: 2014-08-30 | B85: -9 | C85: SHELL OIL 57444599807
A86: 2014-08-30 | B86: -15 | C86: SUBWAY 00360677
A87: 2014-08-30 | B87: -16 | C87: CHEVRON 00309397
A88: 2014-08-29 | B88: -18 | C88: SUBWAY 03140753
A89: 2014-08-29 | B89: -7 | C89: CIRCLE K 03419
A90: 2014-08-29 | B90: -7 | C90: CHEVRON 00207750
A91: 2014-08-28 | B91: -9 | C91: BYU STORE - RESTRICTED
A92: 2014-08-27 | B92: -16 | C92: AMAZON MKTPLACE PMTS
A93: 2014-08-27 | B93: -9 | C93: AMAZON MKTPLACE PMTS
A94: 2014-08-24 | B94: -16 | C94: SUBWAY 03140753
A95: 2014-08-24 | B95: -18 | C95: CHEVRON 00373471
A96: 2014-08-24 | B96: -12 | C96: SHELL OIL 60541220549
A97: 2014-08-22 | B97: -16 | C97: BIG O TIRES
A98: 2014-08-22 | B98: -19 | C98: CHEVRON 00306924
A99: 2014-08-22 | B99: -13 | C99: CHEVRON 00207046
A100: 2014-08-20 | B100: -17 | C100: BARBACOA MEXICAN GRILL
A101: 2014-08-16 | B101: -16 | C101: 7-ELEVEN 36451
A102: 2014-08-16 | B102: -13 | C102: 7-ELEVEN 36451
A103: 2014-08-16 | B103: -6 | C103: CINEMARK THEATRES 061
A104: 2014-08-15 | B104: -18 | C104: UTA-FRONTRUNNER TVM SALT LAKE CITUT
A105: 2014-08-15 | B105: -2 | C105: UTA-FRONTRUNNER TVM SALT LAKE CITUT
A106: 2014-08-14 | B106: -2 | C106: UTA-FRONTRUNNER TVM SALT LAKE CITUT
A107: 2014-08-14 | B107: -1 | C107: UTA-FRONTRUNNER TVM SALT LAKE CITUT
A108: 2014-08-13 | B108: -16 | C108: UTA-FRONTRUNNER TVM SALT LAKE CITUT
A109: 2014-08-13 | B109: -14 | C109: UTA-FRONTRUNNER TVM SALT LAKE CITUT
A110: 2014-08-12 | B110: -6 | C110: UTA-FRONTRUNNER TVM SALT LAKE CITUT
A111: 2014-08-12 | B111: -12 | C111: UTA-FRONTRUNNER TVM SALT LAKE CITUT
A112: 2014-08-11 | B112: -6 | C112: UTA-FRONTRUNNER TVM SALT LAKE CITUT
A113: 2014-08-11 | B113: -20 | C113: UTA-FRONTRUNNER TVM SALT LAKE CITUT
A114: 2014-08-11 | B114: -9 | C114: TARGET 00017541 OREM UT
A115: 2014-08-08 | B115: -3 | C115: WAL-MART #1768 OREM UT
A116: 2014-08-08 | B116: -3 | C116: DOLRTREE 2601 00026013 SANDY UT
A117: 2014-08-07 | B117: -3 | C117: UTA-FRONTRUNNER TVM SALT LAKE CITUT
A118: 2014-08-07 | B118: -14 | C118: UTA-FRONTRUNNER TVM SALT LAKE CITUT
A119: 2014-07-30 | B119: -14 | C119: UTA-FRONTRUNNER TVM SALT LAKE CITUT
A120: 2014-07-22 | B120: -20 | C120: SMITHS FOOD #4136 PROVO UT
A121: 2014-07-14 | B121: -14 | C121: SMITHS FOOD #4136 PROVO UT
A122: 2014-07-06 | B122: -8 | C122: ALLEN'S SUPER SAVE PROVO UT
A123: 2014-06-28 | B123: -17 | C123: SMITHS FOOD #4136 PROVO UT
A124: 2014-06-20 | B124: -11 | C124: WM SUPERCENTER #1768 OREM UT
A125: 2014-06-12 | B125: -1 | C125: SMITHS FOOD #4144 OREM UT
A126: 2014-06-04 | B126: -8 | C126: WAL-MART #1768 OREM UT
A127: 2014-05-27 | B127: -20 | C127: SMITHS FOOD #4136 PROVO UT
A128: 2014-05-19 | B128: -18 | C128: SMITHS FOOD #4136 PROVO UT
A129: 2014-05-11 | B129: -16 | C129: ALLEN'S SUPER SAVE PROVO UT
A130: 2014-05-03 | B130: -10 | C130: TARGET 00017541 OREM UT
A131: 2014-04-25 | B131: =RANDBETWEEN(-20,-1) -> -17 | C131: WAL-MART #1768 OREM UT
A132: 2014-04-17 | B132: -14 | C132: DOLRTREE 2601 00026013 SANDY UT
A133: 2014-04-09 | B133: -20 | C133: BYU TNRB COPY CENTER PROVO UT
A134: 2014-04-01 | B134: -2 | C134: WM SUPERCENTER #1768 OREM UT
A135: 2014-03-24 | B135: -17 | C135: WM SUPERCENTER #1768 OREM UT
A136: 2014-03-16 | B136: -19 | C136: WAL-MART #5235 SANDY UT
A137: 2014-03-08 | B137: -8 | C137: DOLRTREE 2601 00026013 SANDY UT
A138: 2014-02-28 | B138: -9 | C138: BYU TNRB COPY CENTER PROVO UT
A139: 2014-02-20 | B139: -2 | C139: WM SUPERCENTER #1768 OREM UT
A140: 2014-02-12 | B140: -18 | C140: TARGET 00017541 OREM UT
A141: 2014-02-04 | B141: -14 | C141: WAL-MART #1768 OREM UT
A142: 2014-01-27 | B142: -15 | C142: DOLRTREE 2601 00026013 SANDY UT
A143: 2014-01-19 | B143: -16 | C143: BYU TNRB COPY CENTER PROVO UT
A144: 2014-01-11 | B144: -6 | C144: BYU TNRB COPY CENTER PROVO UT
A145: 2014-01-03 | B145: -11 | C145: WM SUPERCENTER #1768 OREM UT

Sheet Sensitivity
A1: Home/Car Loan | B1: Gray are Inputs to manually change
E2: Price | I2: Down Payment | M2: Term | Q2: Interest Rate
A3: Inputs
A4: Price | B4: 500000 | D4: Price | E4: Monthly Payment | F4: Total Interest | H4: Down Payment | I4: Monthly Payment | J4: Total Interest | L4: Term | M4: Monthly Payment | N4: Total Interest | P4: Interest Rate | Q4: Monthly Payment | R4: Total Interest
A5: Down Payment | B5: 10000 | D5: 250000 | E5: 2011.56 | F5: 474160.36 | H5: 5000 | I5: 3982.88 | J5: 938837.5 | L5: 180 | M5: 5071.33 | N5: 412839.93 | P5: 0.045 | Q5: 2482.76 | R5: 403792.89
A6: Annual Interest Rate | B6: 0.09 | D6: 300000 | E6: 2413.87 | F6: 568992.43 | H6: 6000 | I6: 3974.84 | J6: 936940.86 | L6: 360 | M6: 4023.11 | N6: 948320.71 | P6: 0.054 | Q6: 2751.5 | R6: 500540.32
A7: Term (Months to Pay) | B7: 360 | D7: 350000 | E7: 2816.18 | F7: 663824.5 | H7: 7000 | I7: 3966.79 | J7: 935044.22 | P7: 0.063 | Q7: 3032.97 | R7: 601868
A8: *If Car Loan enter 12, 24, 36, 48, or 60 | D8: 400000 | E8: 3218.49 | F8: 758656.57 | H8: 8000 | I8: 3958.74 | J8: 933147.58 | P8: 0.072 | Q8: 3326.06 | R8: 707382.4
A9: *If Home Loan enter 180 or 360 | D9: 450000 | E9: 3620.8 | F9: 853488.64 | H9: 9000 | I9: 3950.7 | J9: 931250.94 | P9: 0.081 | Q9: 3629.66 | R9: 816678.93
D10: 500000 | E10: 4023.11 | F10: 948320.71 | H10: 10000 | I10: 3942.65 | J10: 929354.3 | P10: 0.09 | Q10: 3942.65 | R10: 929354.3
A11: Outputs | D11: 550000 | E11: 4425.42 | F11: 1043152.78 | H11: 11000 | I11: 3934.6 | J11: 927457.65 | P11: 0.099 | Q11: 4263.94 | R11: 1045016.84
A12: Amount Financed | B12: =Price-DownPay -> 490000 | D12: 600000 | E12: 4827.74 | F12: 1137984.85 | H12: 12000 | I12: 3926.56 | J12: 925561.01 | P12: 0.108 | Q12: 4592.49 | R12: 1163294.71
A13: Monthly Payment | B13: =PMT(IntRate/12,Term,-Loan) -> 3942.650823 | D13: 650000 | E13: 5230.05 | F13: 1232816.92 | H13: 13000 | I13: 3918.51 | J13: 923664.37 | P13: 0.117 | Q13: 4927.34 | R13: 1283841.7
A14: Total Interest Paid | B14: =Payment*Term-Loan -> 929354.2963 | D14: 700000 | E14: 5632.36 | F14: 1327648.99 | H14: 14000 | I14: 3910.47 | J14: 921767.73 | P14: 0.126 | Q14: 5267.61 | R14: 1406340.98
D15: 750000 | E15: 6034.67 | F15: 1422481.07 | H15: 15000 | I15: 3902.42 | J15: 919871.09 | P15: 0.135 | Q15: 5612.52 | R15: 1530507.08
D16: 800000 | E16: 6436.98 | F16: 1517313.14 | H16: 16000 | I16: 3894.37 | J16: 917974.45 | P16: 0.144 | Q16: 5961.35 | R16: 1656086.18
D17: 850000 | E17: 6839.29 | F17: 1612145.21 | H17: 17000 | I17: 3886.33 | J17: 916077.81 | P17: 0.153 | Q17: 6313.49 | R17: 1782855.33
D18: 900000 | E18: 7241.6 | F18: 1706977.28 | H18: 18000 | I18: 3878.28 | J18: 914181.16 | P18: 0.162 | Q18: 6668.39 | R18: 1910620.85
D19: 950000 | E19: 7643.91 | F19: 1801809.35 | H19: 19000 | I19: 3870.23 | J19: 912284.52 | P19: 0.171 | Q19: 7025.6 | R19: 2039216.01
D20: 1000000 | E20: 8046.23 | F20: 1896641.42 | H20: 20000 | I20: 3862.19 | J20: 910387.88 | P20: 0.18 | Q20: 7384.72 | R20: 2168498.6

Sheet Amortization Schedule
A1: Inputs | B1: Gray are Inputs to manually change | D1: Month | E1: Payment | F1: Interest | G1: Principal | H1: Extra Payment | I1: Loan
A2: Price | B2: 30000 | I2: =B4 -> 30000
A3: Down Payment | B3: 0 | D3: 1 | E3: =$B$12 -> 1289.436359 | F3: =$B$5/12*I2 -> 75 | G3: =E3-F3 -> 1214.436359 | I3: =I2-G3-H3 -> 28785.56364
A4: Total Financed | B4: =B2-B3 -> 30000 | D4: 2 | E4: =$B$12 -> 1289.436359 | F4: =$B$5/12*I3 -> 71.9639091 | G4: =E4-F4 -> 1217.47245 | I4: =I3-G4-H4 -> 27568.09119
A5: Annual Interest Rate | B5: 0.03 | D5: 3 | E5: 1289.436359 | F5: 68.92022798 | G5: 1220.516131 | I5: 26347.57506
A6: Term (Months to Pay) | B6: 24 | D6: 4 | E6: 1289.436359 | F6: 65.86893765 | G6: 1223.567422 | I6: 25124.00764
A7: *If Car Loan Enter 12, 24, 36, 48, or 60 | D7: 5 | E7: 1289.436359 | F7: 62.81001909 | G7: 1226.62634 | H7: 100 | I7: 23797.3813
A8: *If Home Loan Enter 180 or 360 | D8: 6 | E8: 1289.436359 | F8: 59.49345324 | G8: 1229.942906 | H8: 100 | I8: 22467.43839
D9: 7 | E9: 1289.436359 | F9: 56.16859598 | G9: 1233.267763 | H9: 100 | I9: 21134.17063
A10: Outputs | D10: 8 | E10: 1289.436359 | F10: 52.83542657 | G10: 1236.600933 | H10: 100 | I10: 19797.56969
A11: Amount Financed | B11: =B4 -> 30000 | D11: 9 | E11: 1289.436359 | F11: 49.49392424 | G11: 1239.942435 | H11: 100 | I11: 18457.62726
A12: Monthly Payment | B12: =PMT(B5/12,B6,-B4) -> 1289.436359 | D12: 10 | E12: 1289.436359 | F12: 46.14406815 | G12: 1243.292291 | H12: 100 | I12: 17114.33497
A13: Total Interest Paid | B13: =B12*B6-B11 -> 946.4726253 | D13: 11 | E13: 1289.436359 | F13: 42.78583742 | G13: 1246.650522 | H13: 100 | I13: 15767.68445
A14: Total Cost of Loan | B14: =B13+B11 -> 30946.47263 | D14: 12 | E14: 1289.436359 | F14: 39.41921112 | G14: 1250.017148 | H14: 100 | I14: 14417.6673
D15: 13 | E15: 1289.436359 | F15: 36.04416824 | G15: 1253.392191 | H15: 100 | I15: 13064.27511
A16: Extra Payment | D16: 14 | E16: 1289.436359 | F16: 32.66068777 | G16: 1256.775672 | H16: 100 | I16: 11707.49944
A17: Extra Payment Amount | B17: 100 | D17: 15 | E17: 1289.436359 | F17: 29.26874859 | G17: 1260.167611 | H17: 100 | I17: 10347.33182
A18: # of Months Remaining on Loan | B18: 20 | D18: 16 | E18: 1289.436359 | F18: 25.86832956 | G18: 1263.56803 | H18: 100 | I18: 8983.763794
A19: # of Months Extra Payment is Made | B19: 16 | D19: 17 | E19: 1289.436359 | F19: 22.45940949 | G19: 1266.97695 | H19: 100 | I19: 7616.786845
D20: 18 | E20: 1289.436359 | F20: 19.04196711 | G20: 1270.394392 | H20: 100 | I20: 6246.392452
A21: New Total Interest Paid | B21: =SUM(F3:F25) -> 900.6459713 | D21: 19 | E21: 1289.436359 | F21: 15.61598113 | G21: 1273.820378 | H21: 100 | I21: 4872.572074
D22: 20 | E22: 1289.436359 | F22: 12.18143019 | G22: 1277.254929 | H22: 100 | I22: 3495.317145
A23: Total Interest Saved | B23: =B13-B21 -> 45.82665396 | D23: 21 | E23: 1289.436359 | F23: 8.738292862 | G23: 1280.698067 | I23: 2214.619078
A24: # of Months Reduced | B24: 1 | D24: 22 | E24: 1289.436359 | F24: 5.536547696 | G24: 1283.899812 | I24: 930.7192667
D25: 23 | E25: 933.0460648 | F25: 2.326798167 | G25: 930.7192667 | I25: 0
A40: Total Payment Savings | B40: =B14-B24 -> 30945.47263
A41: Total Ineterest Savings | B41: =B16-B25 -> 0
